{"text_format":"1","workbook":"xlsx","n_sheets":3,"sheets":["Bestelformulier","Instructies","Productiebestand"],"not_rendered":{"charts":0,"images":8,"macros":1,"external_links":0,"defined_names":31,"comments":0,"pivot_tables":0},"unopened":[],"bounds":{"document_bytes":16777216,"sheet_cells":100000,"rows_first":2000,"rows_last":500,"rows_between":2000,"halvings":0,"cell_chars":16384,"cell_head_chars":4096},"cells_cut":0,"cells_raw":0,"read":"whole","date_system":"1900"}

{"sheet":"Bestelformulier","index":0,"n_rows":519,"n_cols":29,"rows_kept":519,"cut":false,"hidden":false,"merged":[[5,15,5,17],[3,14,3,17],[4,14,4,17],[17,3,17,5],[17,6,17,9],[10,6,10,9],[10,1,10,5],[12,1,12,9],[13,1,15,9],[3,11,3,13],[5,11,5,13],[3,6,3,9],[4,6,4,9],[5,6,5,9],[6,6,6,9],[7,6,7,9],[8,6,8,9],[9,6,9,9],[5,1,5,5],[6,1,6,5],[7,1,7,5],[8,1,8,5],[9,1,9,5],[0,0,1,17],[17,10,17,28],[10,11,10,13],[6,14,6,17],[7,14,7,17],[8,14,8,17],[9,14,9,17],[10,14,10,17],[4,11,4,13],[6,11,6,13],[7,11,7,13],[8,11,8,13],[9,11,9,13],[17,0,17,2],[3,1,3,5],[4,1,4,5]]}
["Bestelformulier Graveren"]
[]
[]
[null,"N.A.W. Gegevens",null,null,null,null,null,null,null,null,null,"Uw referentie:"]
[null,"Firmanaam:",null,null,null,null,null,null,null,null,null,"Gewenste leverdatum:"]
[null,"Contactpersoon:"]
[null,"Emailadres:",null,null,null,null,null,null,null,null,null,"Afleveradres:"]
[null,"Adres:",null,null,null,null,null,null,null,null,null,"Firmanaam:"]
[null,"Postcode:",null,null,null,null,null,null,null,null,null,"Adres:"]
[null,"Vestigingsplaats:",null,null,null,null,null,null,null,null,null,"Postcode:"]
[null,"Telefoonnummer:",null,null,null,null,null,null,null,null,null,"Vestigingsplaats:"]
[]
[null,"Opmerkingen"]
[]
[]
[]
[]
[null,null,null,"Afmeting",null,null,"Montage",null,null,null,"Tekstregels"]
["Volgnr.","Aantal","Kleurcode","Lengte (mm)",null,"Hoogte (mm)","Kleeflaag (plaats x)","Boorgaten (plaats x)","Aantal boorgaten ","Diameter boorgaten","Algemene letterhoogte (mm)",1,"Letterhoogte tekstregel 1",2,"Letterhoogte tekstregel 2",3,"Letterhoogte tekstregel 3",4,"Letterhoogte tekstregel 4",5,"Letterhoogte tekstregel 5",6,"Letterhoogte tekstregel 6",7,"Letterhoogte tekstregel 7",8,"Letterhoogte tekstregel 8",9,"Letterhoogte tekstregel 9"]
[1,null,null,null,{"$f":"IF(ISBLANK(D20),\"\",\"x\")","v":""},null,null,null,null,null,null,null,{"$f":"IF(ISBLANK(K20),\"\",K20)","v":""},null,{"$f":"IF(ISBLANK(K20),\"\",K20)","v":""},null,{"$f":"IF(ISBLANK(K20),\"\",K20)","v":""},null,{"$f":"IF(ISBLANK(K20),\"\",K20)","v":""},null,{"$f":"IF(ISBLANK(M20),\"\",M20)","v":""},null,{"$f":"IF(ISBLANK(O20),\"\",O20)","v":""},null,{"$f":"IF(ISBLANK(Q20),\"\",Q20)","v":""},null,{"$f":"IF(ISBLANK(S20),\"\",S20)","v":""},null,{"$f":"IF(ISBLANK(U20),\"\",U20)","v":""}]
[2,null,null,null,"",null,null,null,null,null,null,null,"",null,"",null,"",null,"",null,"",null,"",null,"",null,"",null,""]
[3,null,null,null,"",null,null,null,null,null,null,null,"",null,"",null,"",null,"",null,"",null,"",null,"",null,"",null,""]
[4,null,null,null,"",null,null,null,null,null,null,null,"",null,"",null,"",null,"",null,"",null,"",null,"",null,"",null,""]
[5,null,null,null,"",null,null,null,null,null,null,null,"",null,"",null,"",null,"",null,"",null,"",null,"",null,"",null,""]
[6,null,null,null,"",null,null,null,null,null,null,null,"",null,"",null,"",null,"",null,"",null,"",null,"",null,"",null,""]
[7,null,null,null,"",null,null,null,null,null,null,null,"",null,"",null,"",null,"",null,"",null,"",null,"",null,"",null,""]
[8,null,null,null,"",null,null,null,null,null,null,null,"",null,"",null,"",null,"",null,"",null,"",null,"",null,"",null,""]
[9,null,null,null,"",null,null,null,null,null,null,null,"",null,"",null,"",null,"",null,"",null,"",null,"",null,"",null,""]
[10,null,null,null,"",null,null,null,null,null,null,null,"",null,"",null,"",null,"",null,"",null,"",null,"",null,"",null,""]
[{"$f":"IF(OR(NOT(ISBLANK(B29)),NOT(ISBLANK(C29)),NOT(ISBLANK(D29)),NOT(ISBLANK(F29)),NOT(ISBLANK(G29)),NOT(ISBLANK(H29)),NOT(ISBLANK(I29)),NOT(ISBLANK(J29)),NOT(ISBLANK(K29)),NOT(ISBLANK(L29)),NOT(ISBLANK(N29)),NOT(ISBLANK(P29)),NOT(ISBLANK(R29)),NOT(ISBLANK(T29)),NOT(ISBLANK(V29)),NOT(ISBLANK(X29)),NOT(ISBLANK(Z29)),NOT(ISBLANK(AB29))),ROW(A34)-23,\"\")","v":""},null,null,null,"",null,null,null,null,null,null,null,"",null,"",null,"",null,"",null,"",null,"",null,"",null,"",null,""]
[{"$f":"IF(OR(NOT(ISBLANK(B30)),NOT(ISBLANK(C30)),NOT(ISBLANK(D30)),NOT(ISBLANK(F30)),NOT(ISBLANK(G30)),NOT(ISBLANK(H30)),NOT(ISBLANK(I30)),NOT(ISBLANK(J30)),NOT(ISBLANK(K30)),NOT(ISBLANK(L30)),NOT(ISBLANK(N30)),NOT(ISBLANK(P30)),NOT(ISBLANK(R30)),NOT(ISBLANK(T30)),NOT(ISBLANK(V30)),NOT(ISBLANK(X30)),NOT(ISBLANK(Z30)),NOT(ISBLANK(AB30))),ROW(A35)-23,\"\")","v":""},null,null,null,"",null,null,null,null,null,null,null,"",null,"",null,"",null,"",null,"",null,"",null,"",null,"",null,""]
[{"$f":"IF(OR(NOT(ISBLANK(B31)),NOT(ISBLANK(C31)),NOT(ISBLANK(D31)),NOT(ISBLANK(F31)),NOT(ISBLANK(G31)),NOT(ISBLANK(H31)),NOT(ISBLANK(I31)),NOT(ISBLANK(J31)),NOT(ISBLANK(K31)),NOT(ISBLANK(L31)),NOT(ISBLANK(N31)),NOT(ISBLANK(P31)),NOT(ISBLANK(R31)),NOT(ISBLANK(T31)),NOT(ISBLANK(V31)),NOT(ISBLANK(X31)),NOT(ISBLANK(Z31)),NOT(ISBLANK(AB31))),ROW(A36)-23,\"\")","v":""},null,null,null,"",null,null,null,null,null,null,null,"",null,"",null,"",null,"",null,"",null,"",null,"",null,"",null,""]
["",null,null,null,"",null,null,null,null,null,null,null,"",null,"",null,"",null,"",null,"",null,"",null,"",null,"",null,""]
["",null,null,null,"",null,null,null,null,null,null,null,"",null,"",null,"",null,"",null,"",null,"",null,"",null,"",null,""]
["",null,null,null,"",null,null,null,null,null,null,null,"",null,"",null,"",null,"",null,"",null,"",null,"",null,"",null,""]
["",null,null,null,"",null,null,null,null,null,null,null,"",null,"",null,"",null,"",null,"",null,"",null,"",null,"",null,""]
["",null,null,null,"",null,null,null,null,null,null,null,"",null,"",null,"",null,"",null,"",null,"",null,"",null,"",null,""]
["",null,null,null,"",null,null,null,null,null,null,null,"",null,"",null,"",null,"",null,"",null,"",null,"",null,"",null,""]
["",null,null,null,"",null,null,null,null,null,null,null,"",null,"",null,"",null,"",null,"",null,"",null,"",null,"",null,""]
["",null,null,null,"",null,null,null,null,null,null,null,"",null,"",null,"",null,"",null,"",null,"",null,"",null,"",null,""]
["",null,null,null,"",null,null,null,null,null,null,null,"",null,"",null,"",null,"",null,"",null,"",null,"",null,"",null,""]
["",null,null,null,"",null,null,null,null,null,null,null,"",null,"",null,"",null,"",null,"",null,"",null,"",null,"",null,""]
["",null,null,null,"",null,null,null,null,null,null,null,"",null,"",null,"",null,"",null,"",null,"",null,"",null,"",null,""]
["",null,null,null,"",null,null,null,null,null,null,null,"",null,"",null,"",null,"",null,"",null,"",null,"",null,"",null,""]
["",null,null,null,"",null,null,null,null,null,null,null,"",null,"",null,"",null,"",null,"",null,"",null,"",null,"",null,""]
["",null,null,null,"",null,null,null,null,null,null,null,"",null,"",null,"",null,"",null,"",null,"",null,"",null,"",null,""]
["",null,null,null,"",null,null,null,null,null,null,null,"",null,"",null,"",null,"",null,"",null,"",null,"",null,"",null,""]
["",null,null,null,"",null,null,null,null,null,null,null,"",null,"",null,"",null,"",null,"",null,"",null,"",null,"",null,""]
["",null,null,null,"",null,null,null,null,null,null,null,"",null,"",null,"",null,"",null,"",null,"",null,"",null,"",null,""]
["",null,null,null,"",null,null,null,null,null,null,null,"",null,"",null,"",null,"",null,"",null,"",null,"",null,"",null,""]
["",null,null,null,"",null,null,null,null,null,null,null,"",null,"",null,"",null,"",null,"",null,"",null,"",null,"",null,""]
["",null,null,null,"",null,null,null,null,null,null,null,"",null,"",null,"",null,"",null,"",null,"",null,"",null,"",null,""]
["",null,null,null,"",null,null,null,null,null,null,null,"",null,"",null,"",null,"",null,"",null,"",null,"",null,"",null,""]
["",null,null,null,"",null,null,null,null,null,null,null,"",null,"",null,"",null,"",null,"",null,"",null,"",null,"",null,""]
["",null,null,null,"",null,null,null,null,null,null,null,"",null,"",null,"",null,"",null,"",null,"",null,"",null,"",null,""]
["",null,null,null,"",null,null,null,null,null,null,null,"",null,"",null,"",null,"",null,"",null,"",null,"",null,"",null,""]
["",null,null,null,"",null,null,null,null,null,null,null,"",null,"",null,"",null,"",null,"",null,"",null,"",null,"",null,""]
["",null,null,null,"",null,null,null,null,null,null,null,"",null,"",null,"",null,"",null,"",null,"",null,"",null,"",null,""]
["",null,null,null,"",null,null,null,null,null,null,null,"",null,"",null,"",null,"",null,"",null,"",null,"",null,"",null,""]
["",null,null,null,"",null,null,null,null,null,null,null,"",null,"",null,"",null,"",null,"",null,"",null,"",null,"",null,""]
["",null,null,null,"",null,null,null,null,null,null,null,"",null,"",null,"",null,"",null,"",null,"",null,"",null,"",null,""]
["",null,null,null,"",null,null,null,null,null,null,null,"",null,"",null,"",null,"",null,"",null,"",null,"",null,"",null,""]
["",null,null,null,"",null,null,null,null,null,null,null,"",null,"",null,"",null,"",null,"",null,"",null,"",null,"",null,""]
["",null,null,null,"",null,null,null,null,null,null,null,"",null,"",null,"",null,"",null,"",null,"",null,"",null,"",null,""]
["",null,null,null,"",null,null,null,null,null,null,null,"",null,"",null,"",null,"",null,"",null,"",null,"",null,"",null,""]
["",null,null,null,"",null,null,null,null,null,null,null,"",null,"",null,"",null,"",null,"",null,"",null,"",null,"",null,""]
["",null,null,null,"",null,null,null,null,null,null,null,"",null,"",null,"",null,"",null,"",null,"",null,"",null,"",null,""]
["",null,null,null,"",null,null,null,null,null,null,null,"",null,"",null,"",null,"",null,"",null,"",null,"",null,"",null,""]
["",null,null,null,"",null,null,null,null,null,null,null,"",null,"",null,"",null,"",null,"",null,"",null,"",null,"",null,""]
["",null,null,null,"",null,null,null,null,null,null,null,"",null,"",null,"",null,"",null,"",null,"",null,"",null,"",null,""]
["",null,null,null,"",null,null,null,null,null,null,null,"",null,"",null,"",null,"",null,"",null,"",null,"",null,"",null,""]
["",null,null,null,"",null,null,null,null,null,null,null,"",null,"",null,"",null,"",null,"",null,"",null,"",null,"",null,""]
["",null,null,null,"",null,null,null,null,null,null,null,"",null,"",null,"",null,"",null,"",null,"",null,"",null,"",null,""]
["",null,null,null,"",null,null,null,null,null,null,null,"",null,"",null,"",null,"",null,"",null,"",null,"",null,"",null,""]
["",null,null,null,"",null,null,null,null,null,null,null,"",null,"",null,"",null,"",null,"",null,"",null,"",null,"",null,""]
["",null,null,null,"",null,null,null,null,null,null,null,"",null,"",null,"",null,"",null,"",null,"",null,"",null,"",null,""]
["",null,null,null,"",null,null,null,null,null,null,null,"",null,"",null,"",null,"",null,"",null,"",null,"",null,"",null,""]
["",null,null,null,"",null,null,null,null,null,null,null,"",null,"",null,"",null,"",null,"",null,"",null,"",null,"",null,""]
["",null,null,null,"",null,null,null,null,null,null,null,"",null,"",null,"",null,"",null,"",null,"",null,"",null,"",null,""]
["",null,null,null,"",null,null,null,null,null,null,null,"",null,"",null,"",null,"",null,"",null,"",null,"",null,"",null,""]
["",null,null,null,"",null,null,null,null,null,null,null,"",null,"",null,"",null,"",null,"",null,"",null,"",null,"",null,""]
["",null,null,null,"",null,null,null,null,null,null,null,"",null,"",null,"",null,"",null,"",null,"",null,"",null,"",null,""]
["",null,null,null,"",null,null,null,null,null,null,null,"",null,"",null,"",null,"",null,"",null,"",null,"",null,"",null,""]
["",null,null,null,{"$f":"IF(ISBLANK(D84),\"\",\"x\")","v":""},null,null,null,null,null,null,null,{"$f":"IF(ISBLANK(K84),\"\",K84)","v":""},null,{"$f":"IF(ISBLANK(K84),\"\",K84)","v":""},null,{"$f":"IF(ISBLANK(K84),\"\",K84)","v":""},null,{"$f":"IF(ISBLANK(K84),\"\",K84)","v":""},null,{"$f":"IF(ISBLANK(M84),\"\",M84)","v":""},null,{"$f":"IF(ISBLANK(O84),\"\",O84)","v":""},null,{"$f":"IF(ISBLANK(Q84),\"\",Q84)","v":""},null,{"$f":"IF(ISBLANK(S84),\"\",S84)","v":""},null,{"$f":"IF(ISBLANK(U84),\"\",U84)","v":""}]
["",null,null,null,"",null,null,null,null,null,null,null,"",null,"",null,"",null,"",null,"",null,"",null,"",null,"",null,""]
["",null,null,null,"",null,null,null,null,null,null,null,"",null,"",null,"",null,"",null,"",null,"",null,"",null,"",null,""]
["",null,null,null,"",null,null,null,null,null,null,null,"",null,"",null,"",null,"",null,"",null,"",null,"",null,"",null,""]
["",null,null,null,"",null,null,null,null,null,null,null,"",null,"",null,"",null,"",null,"",null,"",null,"",null,"",null,""]
["",null,null,null,"",null,null,null,null,null,null,null,"",null,"",null,"",null,"",null,"",null,"",null,"",null,"",null,""]
["",null,null,null,"",null,null,null,null,null,null,null,"",null,"",null,"",null,"",null,"",null,"",null,"",null,"",null,""]
["",null,null,null,"",null,null,null,null,null,null,null,"",null,"",null,"",null,"",null,"",null,"",null,"",null,"",null,""]
["",null,null,null,"",null,null,null,null,null,null,null,"",null,"",null,"",null,"",null,"",null,"",null,"",null,"",null,""]
["",null,null,null,"",null,null,null,null,null,null,null,"",null,"",null,"",null,"",null,"",null,"",null,"",null,"",null,""]
["",null,null,null,"",null,null,null,null,null,null,null,"",null,"",null,"",null,"",null,"",null,"",null,"",null,"",null,""]
["",null,null,null,"",null,null,null,null,null,null,null,"",null,"",null,"",null,"",null,"",null,"",null,"",null,"",null,""]
[{"$f":"IF(OR(NOT(ISBLANK(B95)),NOT(ISBLANK(C95)),NOT(ISBLANK(D95)),NOT(ISBLANK(F95)),NOT(ISBLANK(G95)),NOT(ISBLANK(H95)),NOT(ISBLANK(I95)),NOT(ISBLANK(J95)),NOT(ISBLANK(K95)),NOT(ISBLANK(L95)),NOT(ISBLANK(N95)),NOT(ISBLANK(P95)),NOT(ISBLANK(R95)),NOT(ISBLANK(T95)),NOT(ISBLANK(V95)),NOT(ISBLANK(X95)),NOT(ISBLANK(Z95)),NOT(ISBLANK(AB95))),ROW(A100)-23,\"\")","v":""},null,null,null,"",null,null,null,null,null,null,null,"",null,"",null,"",null,"",null,"",null,"",null,"",null,"",null,""]
["",null,null,null,"",null,null,null,null,null,null,null,"",null,"",null,"",null,"",null,"",null,"",null,"",null,"",null,""]
["",null,null,null,"",null,null,null,null,null,null,null,"",null,"",null,"",null,"",null,"",null,"",null,"",null,"",null,""]
["",null,null,null,"",null,null,null,null,null,null,null,"",null,"",null,"",null,"",null,"",null,"",null,"",null,"",null,""]
["",null,null,null,"",null,null,null,null,null,null,null,"",null,"",null,"",null,"",null,"",null,"",null,"",null,"",null,""]
["",null,null,null,"",null,null,null,null,null,null,null,"",null,"",null,"",null,"",null,"",null,"",null,"",null,"",null,""]
["",null,null,null,"",null,null,null,null,null,null,null,"",null,"",null,"",null,"",null,"",null,"",null,"",null,"",null,""]
["",null,null,null,"",null,null,null,null,null,null,null,"",null,"",null,"",null,"",null,"",null,"",null,"",null,"",null,""]
["",null,null,null,"",null,null,null,null,null,null,null,"",null,"",null,"",null,"",null,"",null,"",null,"",null,"",null,""]
["",null,null,null,"",null,null,null,null,null,null,null,"",null,"",null,"",null,"",null,"",null,"",null,"",null,"",null,""]
["",null,null,null,"",null,null,null,null,null,null,null,"",null,"",null,"",null,"",null,"",null,"",null,"",null,"",null,""]
["",null,null,null,"",null,null,null,null,null,null,null,"",null,"",null,"",null,"",null,"",null,"",null,"",null,"",null,""]
["",null,null,null,"",null,null,null,null,null,null,null,"",null,"",null,"",null,"",null,"",null,"",null,"",null,"",null,""]
["",null,null,null,"",null,null,null,null,null,null,null,"",null,"",null,"",null,"",null,"",null,"",null,"",null,"",null,""]
["",null,null,null,"",null,null,null,null,null,null,null,"",null,"",null,"",null,"",null,"",null,"",null,"",null,"",null,""]
["",null,null,null,"",null,null,null,null,null,null,null,"",null,"",null,"",null,"",null,"",null,"",null,"",null,"",null,""]
["",null,null,null,"",null,null,null,null,null,null,null,"",null,"",null,"",null,"",null,"",null,"",null,"",null,"",null,""]
["",null,null,null,"",null,null,null,null,null,null,null,"",null,"",null,"",null,"",null,"",null,"",null,"",null,"",null,""]
["",null,null,null,"",null,null,null,null,null,null,null,"",null,"",null,"",null,"",null,"",null,"",null,"",null,"",null,""]
["",null,null,null,"",null,null,null,null,null,null,null,"",null,"",null,"",null,"",null,"",null,"",null,"",null,"",null,""]
["",null,null,null,"",null,null,null,null,null,null,null,"",null,"",null,"",null,"",null,"",null,"",null,"",null,"",null,""]
["",null,null,null,"",null,null,null,null,null,null,null,"",null,"",null,"",null,"",null,"",null,"",null,"",null,"",null,""]
["",null,null,null,"",null,null,null,null,null,null,null,"",null,"",null,"",null,"",null,"",null,"",null,"",null,"",null,""]
["",null,null,null,"",null,null,null,null,null,null,null,"",null,"",null,"",null,"",null,"",null,"",null,"",null,"",null,""]
["",null,null,null,"",null,null,null,null,null,null,null,"",null,"",null,"",null,"",null,"",null,"",null,"",null,"",null,""]
["",null,null,null,"",null,null,null,null,null,null,null,"",null,"",null,"",null,"",null,"",null,"",null,"",null,"",null,""]
["",null,null,null,"",null,null,null,null,null,null,null,"",null,"",null,"",null,"",null,"",null,"",null,"",null,"",null,""]
["",null,null,null,"",null,null,null,null,null,null,null,"",null,"",null,"",null,"",null,"",null,"",null,"",null,"",null,""]
["",null,null,null,"",null,null,null,null,null,null,null,"",null,"",null,"",null,"",null,"",null,"",null,"",null,"",null,""]
["",null,null,null,"",null,null,null,null,null,null,null,"",null,"",null,"",null,"",null,"",null,"",null,"",null,"",null,""]
["",null,null,null,"",null,null,null,null,null,null,null,"",null,"",null,"",null,"",null,"",null,"",null,"",null,"",null,""]
["",null,null,null,"",null,null,null,null,null,null,null,"",null,"",null,"",null,"",null,"",null,"",null,"",null,"",null,""]
["",null,null,null,"",null,null,null,null,null,null,null,"",null,"",null,"",null,"",null,"",null,"",null,"",null,"",null,""]
["",null,null,null,"",null,null,null,null,null,null,null,"",null,"",null,"",null,"",null,"",null,"",null,"",null,"",null,""]
["",null,null,null,"",null,null,null,null,null,null,null,"",null,"",null,"",null,"",null,"",null,"",null,"",null,"",null,""]
["",null,null,null,"",null,null,null,null,null,null,null,"",null,"",null,"",null,"",null,"",null,"",null,"",null,"",null,""]
["",null,null,null,"",null,null,null,null,null,null,null,"",null,"",null,"",null,"",null,"",null,"",null,"",null,"",null,""]
["",null,null,null,"",null,null,null,null,null,null,null,"",null,"",null,"",null,"",null,"",null,"",null,"",null,"",null,""]
["",null,null,null,"",null,null,null,null,null,null,null,"",null,"",null,"",null,"",null,"",null,"",null,"",null,"",null,""]
["",null,null,null,"",null,null,null,null,null,null,null,"",null,"",null,"",null,"",null,"",null,"",null,"",null,"",null,""]
["",null,null,null,"",null,null,null,null,null,null,null,"",null,"",null,"",null,"",null,"",null,"",null,"",null,"",null,""]
["",null,null,null,"",null,null,null,null,null,null,null,"",null,"",null,"",null,"",null,"",null,"",null,"",null,"",null,""]
["",null,null,null,"",null,null,null,null,null,null,null,"",null,"",null,"",null,"",null,"",null,"",null,"",null,"",null,""]
["",null,null,null,"",null,null,null,null,null,null,null,"",null,"",null,"",null,"",null,"",null,"",null,"",null,"",null,""]
["",null,null,null,"",null,null,null,null,null,null,null,"",null,"",null,"",null,"",null,"",null,"",null,"",null,"",null,""]
["",null,null,null,"",null,null,null,null,null,null,null,"",null,"",null,"",null,"",null,"",null,"",null,"",null,"",null,""]
["",null,null,null,"",null,null,null,null,null,null,null,"",null,"",null,"",null,"",null,"",null,"",null,"",null,"",null,""]
["",null,null,null,"",null,null,null,null,null,null,null,"",null,"",null,"",null,"",null,"",null,"",null,"",null,"",null,""]
["",null,null,null,"",null,null,null,null,null,null,null,"",null,"",null,"",null,"",null,"",null,"",null,"",null,"",null,""]
["",null,null,null,"",null,null,null,null,null,null,null,"",null,"",null,"",null,"",null,"",null,"",null,"",null,"",null,""]
["",null,null,null,"",null,null,null,null,null,null,null,"",null,"",null,"",null,"",null,"",null,"",null,"",null,"",null,""]
["",null,null,null,"",null,null,null,null,null,null,null,"",null,"",null,"",null,"",null,"",null,"",null,"",null,"",null,""]
["",null,null,null,{"$f":"IF(ISBLANK(D148),\"\",\"x\")","v":""},null,null,null,null,null,null,null,{"$f":"IF(ISBLANK(K148),\"\",K148)","v":""},null,{"$f":"IF(ISBLANK(K148),\"\",K148)","v":""},null,{"$f":"IF(ISBLANK(K148),\"\",K148)","v":""},null,{"$f":"IF(ISBLANK(K148),\"\",K148)","v":""},null,{"$f":"IF(ISBLANK(M148),\"\",M148)","v":""},null,{"$f":"IF(ISBLANK(O148),\"\",O148)","v":""},null,{"$f":"IF(ISBLANK(Q148),\"\",Q148)","v":""},null,{"$f":"IF(ISBLANK(S148),\"\",S148)","v":""},null,{"$f":"IF(ISBLANK(U148),\"\",U148)","v":""}]
["",null,null,null,"",null,null,null,null,null,null,null,"",null,"",null,"",null,"",null,"",null,"",null,"",null,"",null,""]
["",null,null,null,"",null,null,null,null,null,null,null,"",null,"",null,"",null,"",null,"",null,"",null,"",null,"",null,""]
["",null,null,null,"",null,null,null,null,null,null,null,"",null,"",null,"",null,"",null,"",null,"",null,"",null,"",null,""]
["",null,null,null,"",null,null,null,null,null,null,null,"",null,"",null,"",null,"",null,"",null,"",null,"",null,"",null,""]
["",null,null,null,"",null,null,null,null,null,null,null,"",null,"",null,"",null,"",null,"",null,"",null,"",null,"",null,""]
["",null,null,null,"",null,null,null,null,null,null,null,"",null,"",null,"",null,"",null,"",null,"",null,"",null,"",null,""]
["",null,null,null,"",null,null,null,null,null,null,null,"",null,"",null,"",null,"",null,"",null,"",null,"",null,"",null,""]
["",null,null,null,"",null,null,null,null,null,null,null,"",null,"",null,"",null,"",null,"",null,"",null,"",null,"",null,""]
["",null,null,null,"",null,null,null,null,null,null,null,"",null,"",null,"",null,"",null,"",null,"",null,"",null,"",null,""]
["",null,null,null,"",null,null,null,null,null,null,null,"",null,"",null,"",null,"",null,"",null,"",null,"",null,"",null,""]
["",null,null,null,"",null,null,null,null,null,null,null,"",null,"",null,"",null,"",null,"",null,"",null,"",null,"",null,""]
[{"$f":"IF(OR(NOT(ISBLANK(B159)),NOT(ISBLANK(C159)),NOT(ISBLANK(D159)),NOT(ISBLANK(F159)),NOT(ISBLANK(G159)),NOT(ISBLANK(H159)),NOT(ISBLANK(I159)),NOT(ISBLANK(J159)),NOT(ISBLANK(K159)),NOT(ISBLANK(L159)),NOT(ISBLANK(N159)),NOT(ISBLANK(P159)),NOT(ISBLANK(R159)),NOT(ISBLANK(T159)),NOT(ISBLANK(V159)),NOT(ISBLANK(X159)),NOT(ISBLANK(Z159)),NOT(ISBLANK(AB159))),ROW(A164)-23,\"\")","v":""},null,null,null,"",null,null,null,null,null,null,null,"",null,"",null,"",null,"",null,"",null,"",null,"",null,"",null,""]
["",null,null,null,"",null,null,null,null,null,null,null,"",null,"",null,"",null,"",null,"",null,"",null,"",null,"",null,""]
["",null,null,null,"",null,null,null,null,null,null,null,"",null,"",null,"",null,"",null,"",null,"",null,"",null,"",null,""]
["",null,null,null,"",null,null,null,null,null,null,null,"",null,"",null,"",null,"",null,"",null,"",null,"",null,"",null,""]
["",null,null,null,"",null,null,null,null,null,null,null,"",null,"",null,"",null,"",null,"",null,"",null,"",null,"",null,""]
["",null,null,null,"",null,null,null,null,null,null,null,"",null,"",null,"",null,"",null,"",null,"",null,"",null,"",null,""]
["",null,null,null,"",null,null,null,null,null,null,null,"",null,"",null,"",null,"",null,"",null,"",null,"",null,"",null,""]
["",null,null,null,"",null,null,null,null,null,null,null,"",null,"",null,"",null,"",null,"",null,"",null,"",null,"",null,""]
["",null,null,null,"",null,null,null,null,null,null,null,"",null,"",null,"",null,"",null,"",null,"",null,"",null,"",null,""]
["",null,null,null,"",null,null,null,null,null,null,null,"",null,"",null,"",null,"",null,"",null,"",null,"",null,"",null,""]
["",null,null,null,"",null,null,null,null,null,null,null,"",null,"",null,"",null,"",null,"",null,"",null,"",null,"",null,""]
["",null,null,null,"",null,null,null,null,null,null,null,"",null,"",null,"",null,"",null,"",null,"",null,"",null,"",null,""]
["",null,null,null,"",null,null,null,null,null,null,null,"",null,"",null,"",null,"",null,"",null,"",null,"",null,"",null,""]
["",null,null,null,"",null,null,null,null,null,null,null,"",null,"",null,"",null,"",null,"",null,"",null,"",null,"",null,""]
["",null,null,null,"",null,null,null,null,null,null,null,"",null,"",null,"",null,"",null,"",null,"",null,"",null,"",null,""]
["",null,null,null,"",null,null,null,null,null,null,null,"",null,"",null,"",null,"",null,"",null,"",null,"",null,"",null,""]
["",null,null,null,"",null,null,null,null,null,null,null,"",null,"",null,"",null,"",null,"",null,"",null,"",null,"",null,""]
["",null,null,null,"",null,null,null,null,null,null,null,"",null,"",null,"",null,"",null,"",null,"",null,"",null,"",null,""]
["",null,null,null,"",null,null,null,null,null,null,null,"",null,"",null,"",null,"",null,"",null,"",null,"",null,"",null,""]
["",null,null,null,"",null,null,null,null,null,null,null,"",null,"",null,"",null,"",null,"",null,"",null,"",null,"",null,""]
["",null,null,null,"",null,null,null,null,null,null,null,"",null,"",null,"",null,"",null,"",null,"",null,"",null,"",null,""]
["",null,null,null,"",null,null,null,null,null,null,null,"",null,"",null,"",null,"",null,"",null,"",null,"",null,"",null,""]
["",null,null,null,"",null,null,null,null,null,null,null,"",null,"",null,"",null,"",null,"",null,"",null,"",null,"",null,""]
["",null,null,null,"",null,null,null,null,null,null,null,"",null,"",null,"",null,"",null,"",null,"",null,"",null,"",null,""]
["",null,null,null,"",null,null,null,null,null,null,null,"",null,"",null,"",null,"",null,"",null,"",null,"",null,"",null,""]
["",null,null,null,"",null,null,null,null,null,null,null,"",null,"",null,"",null,"",null,"",null,"",null,"",null,"",null,""]
["",null,null,null,"",null,null,null,null,null,null,null,"",null,"",null,"",null,"",null,"",null,"",null,"",null,"",null,""]
["",null,null,null,"",null,null,null,null,null,null,null,"",null,"",null,"",null,"",null,"",null,"",null,"",null,"",null,""]
["",null,null,null,"",null,null,null,null,null,null,null,"",null,"",null,"",null,"",null,"",null,"",null,"",null,"",null,""]
["",null,null,null,"",null,null,null,null,null,null,null,"",null,"",null,"",null,"",null,"",null,"",null,"",null,"",null,""]
["",null,null,null,"",null,null,null,null,null,null,null,"",null,"",null,"",null,"",null,"",null,"",null,"",null,"",null,""]
["",null,null,null,"",null,null,null,null,null,null,null,"",null,"",null,"",null,"",null,"",null,"",null,"",null,"",null,""]
["",null,null,null,"",null,null,null,null,null,null,null,"",null,"",null,"",null,"",null,"",null,"",null,"",null,"",null,""]
["",null,null,null,"",null,null,null,null,null,null,null,"",null,"",null,"",null,"",null,"",null,"",null,"",null,"",null,""]
["",null,null,null,"",null,null,null,null,null,null,null,"",null,"",null,"",null,"",null,"",null,"",null,"",null,"",null,""]
["",null,null,null,"",null,null,null,null,null,null,null,"",null,"",null,"",null,"",null,"",null,"",null,"",null,"",null,""]
["",null,null,null,"",null,null,null,null,null,null,null,"",null,"",null,"",null,"",null,"",null,"",null,"",null,"",null,""]
["",null,null,null,"",null,null,null,null,null,null,null,"",null,"",null,"",null,"",null,"",null,"",null,"",null,"",null,""]
["",null,null,null,"",null,null,null,null,null,null,null,"",null,"",null,"",null,"",null,"",null,"",null,"",null,"",null,""]
["",null,null,null,"",null,null,null,null,null,null,null,"",null,"",null,"",null,"",null,"",null,"",null,"",null,"",null,""]
["",null,null,null,"",null,null,null,null,null,null,null,"",null,"",null,"",null,"",null,"",null,"",null,"",null,"",null,""]
["",null,null,null,"",null,null,null,null,null,null,null,"",null,"",null,"",null,"",null,"",null,"",null,"",null,"",null,""]
["",null,null,null,"",null,null,null,null,null,null,null,"",null,"",null,"",null,"",null,"",null,"",null,"",null,"",null,""]
["",null,null,null,"",null,null,null,null,null,null,null,"",null,"",null,"",null,"",null,"",null,"",null,"",null,"",null,""]
["",null,null,null,"",null,null,null,null,null,null,null,"",null,"",null,"",null,"",null,"",null,"",null,"",null,"",null,""]
["",null,null,null,"",null,null,null,null,null,null,null,"",null,"",null,"",null,"",null,"",null,"",null,"",null,"",null,""]
["",null,null,null,"",null,null,null,null,null,null,null,"",null,"",null,"",null,"",null,"",null,"",null,"",null,"",null,""]
["",null,null,null,"",null,null,null,null,null,null,null,"",null,"",null,"",null,"",null,"",null,"",null,"",null,"",null,""]
["",null,null,null,"",null,null,null,null,null,null,null,"",null,"",null,"",null,"",null,"",null,"",null,"",null,"",null,""]
["",null,null,null,"",null,null,null,null,null,null,null,"",null,"",null,"",null,"",null,"",null,"",null,"",null,"",null,""]
["",null,null,null,"",null,null,null,null,null,null,null,"",null,"",null,"",null,"",null,"",null,"",null,"",null,"",null,""]
["",null,null,null,"",null,null,null,null,null,null,null,"",null,"",null,"",null,"",null,"",null,"",null,"",null,"",null,""]
["",null,null,null,{"$f":"IF(ISBLANK(D212),\"\",\"x\")","v":""},null,null,null,null,null,null,null,{"$f":"IF(ISBLANK(K212),\"\",K212)","v":""},null,{"$f":"IF(ISBLANK(K212),\"\",K212)","v":""},null,{"$f":"IF(ISBLANK(K212),\"\",K212)","v":""},null,{"$f":"IF(ISBLANK(K212),\"\",K212)","v":""},null,{"$f":"IF(ISBLANK(M212),\"\",M212)","v":""},null,{"$f":"IF(ISBLANK(O212),\"\",O212)","v":""},null,{"$f":"IF(ISBLANK(Q212),\"\",Q212)","v":""},null,{"$f":"IF(ISBLANK(S212),\"\",S212)","v":""},null,{"$f":"IF(ISBLANK(U212),\"\",U212)","v":""}]
["",null,null,null,"",null,null,null,null,null,null,null,"",null,"",null,"",null,"",null,"",null,"",null,"",null,"",null,""]
["",null,null,null,"",null,null,null,null,null,null,null,"",null,"",null,"",null,"",null,"",null,"",null,"",null,"",null,""]
["",null,null,null,"",null,null,null,null,null,null,null,"",null,"",null,"",null,"",null,"",null,"",null,"",null,"",null,""]
["",null,null,null,"",null,null,null,null,null,null,null,"",null,"",null,"",null,"",null,"",null,"",null,"",null,"",null,""]
["",null,null,null,"",null,null,null,null,null,null,null,"",null,"",null,"",null,"",null,"",null,"",null,"",null,"",null,""]
["",null,null,null,"",null,null,null,null,null,null,null,"",null,"",null,"",null,"",null,"",null,"",null,"",null,"",null,""]
["",null,null,null,"",null,null,null,null,null,null,null,"",null,"",null,"",null,"",null,"",null,"",null,"",null,"",null,""]
["",null,null,null,"",null,null,null,null,null,null,null,"",null,"",null,"",null,"",null,"",null,"",null,"",null,"",null,""]
["",null,null,null,"",null,null,null,null,null,null,null,"",null,"",null,"",null,"",null,"",null,"",null,"",null,"",null,""]
["",null,null,null,"",null,null,null,null,null,null,null,"",null,"",null,"",null,"",null,"",null,"",null,"",null,"",null,""]
["",null,null,null,"",null,null,null,null,null,null,null,"",null,"",null,"",null,"",null,"",null,"",null,"",null,"",null,""]
[{"$f":"IF(OR(NOT(ISBLANK(B223)),NOT(ISBLANK(C223)),NOT(ISBLANK(D223)),NOT(ISBLANK(F223)),NOT(ISBLANK(G223)),NOT(ISBLANK(H223)),NOT(ISBLANK(I223)),NOT(ISBLANK(J223)),NOT(ISBLANK(K223)),NOT(ISBLANK(L223)),NOT(ISBLANK(N223)),NOT(ISBLANK(P223)),NOT(ISBLANK(R223)),NOT(ISBLANK(T223)),NOT(ISBLANK(V223)),NOT(ISBLANK(X223)),NOT(ISBLANK(Z223)),NOT(ISBLANK(AB223))),ROW(A228)-23,\"\")","v":""},null,null,null,"",null,null,null,null,null,null,null,"",null,"",null,"",null,"",null,"",null,"",null,"",null,"",null,""]
["",null,null,null,"",null,null,null,null,null,null,null,"",null,"",null,"",null,"",null,"",null,"",null,"",null,"",null,""]
["",null,null,null,"",null,null,null,null,null,null,null,"",null,"",null,"",null,"",null,"",null,"",null,"",null,"",null,""]
["",null,null,null,"",null,null,null,null,null,null,null,"",null,"",null,"",null,"",null,"",null,"",null,"",null,"",null,""]
["",null,null,null,"",null,null,null,null,null,null,null,"",null,"",null,"",null,"",null,"",null,"",null,"",null,"",null,""]
["",null,null,null,"",null,null,null,null,null,null,null,"",null,"",null,"",null,"",null,"",null,"",null,"",null,"",null,""]
["",null,null,null,"",null,null,null,null,null,null,null,"",null,"",null,"",null,"",null,"",null,"",null,"",null,"",null,""]
["",null,null,null,"",null,null,null,null,null,null,null,"",null,"",null,"",null,"",null,"",null,"",null,"",null,"",null,""]
["",null,null,null,"",null,null,null,null,null,null,null,"",null,"",null,"",null,"",null,"",null,"",null,"",null,"",null,""]
["",null,null,null,"",null,null,null,null,null,null,null,"",null,"",null,"",null,"",null,"",null,"",null,"",null,"",null,""]
["",null,null,null,"",null,null,null,null,null,null,null,"",null,"",null,"",null,"",null,"",null,"",null,"",null,"",null,""]
["",null,null,null,"",null,null,null,null,null,null,null,"",null,"",null,"",null,"",null,"",null,"",null,"",null,"",null,""]
["",null,null,null,"",null,null,null,null,null,null,null,"",null,"",null,"",null,"",null,"",null,"",null,"",null,"",null,""]
["",null,null,null,"",null,null,null,null,null,null,null,"",null,"",null,"",null,"",null,"",null,"",null,"",null,"",null,""]
["",null,null,null,"",null,null,null,null,null,null,null,"",null,"",null,"",null,"",null,"",null,"",null,"",null,"",null,""]
["",null,null,null,"",null,null,null,null,null,null,null,"",null,"",null,"",null,"",null,"",null,"",null,"",null,"",null,""]
["",null,null,null,"",null,null,null,null,null,null,null,"",null,"",null,"",null,"",null,"",null,"",null,"",null,"",null,""]
["",null,null,null,"",null,null,null,null,null,null,null,"",null,"",null,"",null,"",null,"",null,"",null,"",null,"",null,""]
["",null,null,null,"",null,null,null,null,null,null,null,"",null,"",null,"",null,"",null,"",null,"",null,"",null,"",null,""]
["",null,null,null,"",null,null,null,null,null,null,null,"",null,"",null,"",null,"",null,"",null,"",null,"",null,"",null,""]
["",null,null,null,"",null,null,null,null,null,null,null,"",null,"",null,"",null,"",null,"",null,"",null,"",null,"",null,""]
["",null,null,null,"",null,null,null,null,null,null,null,"",null,"",null,"",null,"",null,"",null,"",null,"",null,"",null,""]
["",null,null,null,"",null,null,null,null,null,null,null,"",null,"",null,"",null,"",null,"",null,"",null,"",null,"",null,""]
["",null,null,null,"",null,null,null,null,null,null,null,"",null,"",null,"",null,"",null,"",null,"",null,"",null,"",null,""]
["",null,null,null,"",null,null,null,null,null,null,null,"",null,"",null,"",null,"",null,"",null,"",null,"",null,"",null,""]
["",null,null,null,"",null,null,null,null,null,null,null,"",null,"",null,"",null,"",null,"",null,"",null,"",null,"",null,""]
["",null,null,null,"",null,null,null,null,null,null,null,"",null,"",null,"",null,"",null,"",null,"",null,"",null,"",null,""]
["",null,null,null,"",null,null,null,null,null,null,null,"",null,"",null,"",null,"",null,"",null,"",null,"",null,"",null,""]
["",null,null,null,"",null,null,null,null,null,null,null,"",null,"",null,"",null,"",null,"",null,"",null,"",null,"",null,""]
["",null,null,null,"",null,null,null,null,null,null,null,"",null,"",null,"",null,"",null,"",null,"",null,"",null,"",null,""]
["",null,null,null,"",null,null,null,null,null,null,null,"",null,"",null,"",null,"",null,"",null,"",null,"",null,"",null,""]
["",null,null,null,"",null,null,null,null,null,null,null,"",null,"",null,"",null,"",null,"",null,"",null,"",null,"",null,""]
["",null,null,null,"",null,null,null,null,null,null,null,"",null,"",null,"",null,"",null,"",null,"",null,"",null,"",null,""]
["",null,null,null,"",null,null,null,null,null,null,null,"",null,"",null,"",null,"",null,"",null,"",null,"",null,"",null,""]
["",null,null,null,"",null,null,null,null,null,null,null,"",null,"",null,"",null,"",null,"",null,"",null,"",null,"",null,""]
["",null,null,null,"",null,null,null,null,null,null,null,"",null,"",null,"",null,"",null,"",null,"",null,"",null,"",null,""]
["",null,null,null,"",null,null,null,null,null,null,null,"",null,"",null,"",null,"",null,"",null,"",null,"",null,"",null,""]
["",null,null,null,"",null,null,null,null,null,null,null,"",null,"",null,"",null,"",null,"",null,"",null,"",null,"",null,""]
["",null,null,null,"",null,null,null,null,null,null,null,"",null,"",null,"",null,"",null,"",null,"",null,"",null,"",null,""]
["",null,null,null,"",null,null,null,null,null,null,null,"",null,"",null,"",null,"",null,"",null,"",null,"",null,"",null,""]
["",null,null,null,"",null,null,null,null,null,null,null,"",null,"",null,"",null,"",null,"",null,"",null,"",null,"",null,""]
["",null,null,null,"",null,null,null,null,null,null,null,"",null,"",null,"",null,"",null,"",null,"",null,"",null,"",null,""]
["",null,null,null,"",null,null,null,null,null,null,null,"",null,"",null,"",null,"",null,"",null,"",null,"",null,"",null,""]
["",null,null,null,"",null,null,null,null,null,null,null,"",null,"",null,"",null,"",null,"",null,"",null,"",null,"",null,""]
["",null,null,null,"",null,null,null,null,null,null,null,"",null,"",null,"",null,"",null,"",null,"",null,"",null,"",null,""]
["",null,null,null,"",null,null,null,null,null,null,null,"",null,"",null,"",null,"",null,"",null,"",null,"",null,"",null,""]
["",null,null,null,"",null,null,null,null,null,null,null,"",null,"",null,"",null,"",null,"",null,"",null,"",null,"",null,""]
["",null,null,null,"",null,null,null,null,null,null,null,"",null,"",null,"",null,"",null,"",null,"",null,"",null,"",null,""]
["",null,null,null,"",null,null,null,null,null,null,null,"",null,"",null,"",null,"",null,"",null,"",null,"",null,"",null,""]
["",null,null,null,"",null,null,null,null,null,null,null,"",null,"",null,"",null,"",null,"",null,"",null,"",null,"",null,""]
["",null,null,null,"",null,null,null,null,null,null,null,"",null,"",null,"",null,"",null,"",null,"",null,"",null,"",null,""]
["",null,null,null,"",null,null,null,null,null,null,null,"",null,"",null,"",null,"",null,"",null,"",null,"",null,"",null,""]
["",null,null,null,{"$f":"IF(ISBLANK(D276),\"\",\"x\")","v":""},null,null,null,null,null,null,null,{"$f":"IF(ISBLANK(K276),\"\",K276)","v":""},null,{"$f":"IF(ISBLANK(K276),\"\",K276)","v":""},null,{"$f":"IF(ISBLANK(K276),\"\",K276)","v":""},null,{"$f":"IF(ISBLANK(K276),\"\",K276)","v":""},null,{"$f":"IF(ISBLANK(M276),\"\",M276)","v":""},null,{"$f":"IF(ISBLANK(O276),\"\",O276)","v":""},null,{"$f":"IF(ISBLANK(Q276),\"\",Q276)","v":""},null,{"$f":"IF(ISBLANK(S276),\"\",S276)","v":""},null,{"$f":"IF(ISBLANK(U276),\"\",U276)","v":""}]
["",null,null,null,"",null,null,null,null,null,null,null,"",null,"",null,"",null,"",null,"",null,"",null,"",null,"",null,""]
["",null,null,null,"",null,null,null,null,null,null,null,"",null,"",null,"",null,"",null,"",null,"",null,"",null,"",null,""]
["",null,null,null,"",null,null,null,null,null,null,null,"",null,"",null,"",null,"",null,"",null,"",null,"",null,"",null,""]
["",null,null,null,"",null,null,null,null,null,null,null,"",null,"",null,"",null,"",null,"",null,"",null,"",null,"",null,""]
["",null,null,null,"",null,null,null,null,null,null,null,"",null,"",null,"",null,"",null,"",null,"",null,"",null,"",null,""]
["",null,null,null,"",null,null,null,null,null,null,null,"",null,"",null,"",null,"",null,"",null,"",null,"",null,"",null,""]
["",null,null,null,"",null,null,null,null,null,null,null,"",null,"",null,"",null,"",null,"",null,"",null,"",null,"",null,""]
["",null,null,null,"",null,null,null,null,null,null,null,"",null,"",null,"",null,"",null,"",null,"",null,"",null,"",null,""]
["",null,null,null,"",null,null,null,null,null,null,null,"",null,"",null,"",null,"",null,"",null,"",null,"",null,"",null,""]
["",null,null,null,"",null,null,null,null,null,null,null,"",null,"",null,"",null,"",null,"",null,"",null,"",null,"",null,""]
["",null,null,null,"",null,null,null,null,null,null,null,"",null,"",null,"",null,"",null,"",null,"",null,"",null,"",null,""]
[{"$f":"IF(OR(NOT(ISBLANK(B287)),NOT(ISBLANK(C287)),NOT(ISBLANK(D287)),NOT(ISBLANK(F287)),NOT(ISBLANK(G287)),NOT(ISBLANK(H287)),NOT(ISBLANK(I287)),NOT(ISBLANK(J287)),NOT(ISBLANK(K287)),NOT(ISBLANK(L287)),NOT(ISBLANK(N287)),NOT(ISBLANK(P287)),NOT(ISBLANK(R287)),NOT(ISBLANK(T287)),NOT(ISBLANK(V287)),NOT(ISBLANK(X287)),NOT(ISBLANK(Z287)),NOT(ISBLANK(AB287))),ROW(A292)-23,\"\")","v":""},null,null,null,"",null,null,null,null,null,null,null,"",null,"",null,"",null,"",null,"",null,"",null,"",null,"",null,""]
["",null,null,null,"",null,null,null,null,null,null,null,"",null,"",null,"",null,"",null,"",null,"",null,"",null,"",null,""]
["",null,null,null,"",null,null,null,null,null,null,null,"",null,"",null,"",null,"",null,"",null,"",null,"",null,"",null,""]
["",null,null,null,"",null,null,null,null,null,null,null,"",null,"",null,"",null,"",null,"",null,"",null,"",null,"",null,""]
["",null,null,null,"",null,null,null,null,null,null,null,"",null,"",null,"",null,"",null,"",null,"",null,"",null,"",null,""]
["",null,null,null,"",null,null,null,null,null,null,null,"",null,"",null,"",null,"",null,"",null,"",null,"",null,"",null,""]
["",null,null,null,"",null,null,null,null,null,null,null,"",null,"",null,"",null,"",null,"",null,"",null,"",null,"",null,""]
["",null,null,null,"",null,null,null,null,null,null,null,"",null,"",null,"",null,"",null,"",null,"",null,"",null,"",null,""]
["",null,null,null,"",null,null,null,null,null,null,null,"",null,"",null,"",null,"",null,"",null,"",null,"",null,"",null,""]
["",null,null,null,"",null,null,null,null,null,null,null,"",null,"",null,"",null,"",null,"",null,"",null,"",null,"",null,""]
["",null,null,null,"",null,null,null,null,null,null,null,"",null,"",null,"",null,"",null,"",null,"",null,"",null,"",null,""]
["",null,null,null,"",null,null,null,null,null,null,null,"",null,"",null,"",null,"",null,"",null,"",null,"",null,"",null,""]
["",null,null,null,"",null,null,null,null,null,null,null,"",null,"",null,"",null,"",null,"",null,"",null,"",null,"",null,""]
["",null,null,null,"",null,null,null,null,null,null,null,"",null,"",null,"",null,"",null,"",null,"",null,"",null,"",null,""]
["",null,null,null,"",null,null,null,null,null,null,null,"",null,"",null,"",null,"",null,"",null,"",null,"",null,"",null,""]
["",null,null,null,"",null,null,null,null,null,null,null,"",null,"",null,"",null,"",null,"",null,"",null,"",null,"",null,""]
["",null,null,null,"",null,null,null,null,null,null,null,"",null,"",null,"",null,"",null,"",null,"",null,"",null,"",null,""]
["",null,null,null,"",null,null,null,null,null,null,null,"",null,"",null,"",null,"",null,"",null,"",null,"",null,"",null,""]
["",null,null,null,"",null,null,null,null,null,null,null,"",null,"",null,"",null,"",null,"",null,"",null,"",null,"",null,""]
["",null,null,null,"",null,null,null,null,null,null,null,"",null,"",null,"",null,"",null,"",null,"",null,"",null,"",null,""]
["",null,null,null,"",null,null,null,null,null,null,null,"",null,"",null,"",null,"",null,"",null,"",null,"",null,"",null,""]
["",null,null,null,"",null,null,null,null,null,null,null,"",null,"",null,"",null,"",null,"",null,"",null,"",null,"",null,""]
["",null,null,null,"",null,null,null,null,null,null,null,"",null,"",null,"",null,"",null,"",null,"",null,"",null,"",null,""]
["",null,null,null,"",null,null,null,null,null,null,null,"",null,"",null,"",null,"",null,"",null,"",null,"",null,"",null,""]
["",null,null,null,"",null,null,null,null,null,null,null,"",null,"",null,"",null,"",null,"",null,"",null,"",null,"",null,""]
["",null,null,null,"",null,null,null,null,null,null,null,"",null,"",null,"",null,"",null,"",null,"",null,"",null,"",null,""]
["",null,null,null,"",null,null,null,null,null,null,null,"",null,"",null,"",null,"",null,"",null,"",null,"",null,"",null,""]
["",null,null,null,"",null,null,null,null,null,null,null,"",null,"",null,"",null,"",null,"",null,"",null,"",null,"",null,""]
["",null,null,null,"",null,null,null,null,null,null,null,"",null,"",null,"",null,"",null,"",null,"",null,"",null,"",null,""]
["",null,null,null,"",null,null,null,null,null,null,null,"",null,"",null,"",null,"",null,"",null,"",null,"",null,"",null,""]
["",null,null,null,"",null,null,null,null,null,null,null,"",null,"",null,"",null,"",null,"",null,"",null,"",null,"",null,""]
["",null,null,null,"",null,null,null,null,null,null,null,"",null,"",null,"",null,"",null,"",null,"",null,"",null,"",null,""]
["",null,null,null,"",null,null,null,null,null,null,null,"",null,"",null,"",null,"",null,"",null,"",null,"",null,"",null,""]
["",null,null,null,"",null,null,null,null,null,null,null,"",null,"",null,"",null,"",null,"",null,"",null,"",null,"",null,""]
["",null,null,null,"",null,null,null,null,null,null,null,"",null,"",null,"",null,"",null,"",null,"",null,"",null,"",null,""]
["",null,null,null,"",null,null,null,null,null,null,null,"",null,"",null,"",null,"",null,"",null,"",null,"",null,"",null,""]
["",null,null,null,"",null,null,null,null,null,null,null,"",null,"",null,"",null,"",null,"",null,"",null,"",null,"",null,""]
["",null,null,null,"",null,null,null,null,null,null,null,"",null,"",null,"",null,"",null,"",null,"",null,"",null,"",null,""]
["",null,null,null,"",null,null,null,null,null,null,null,"",null,"",null,"",null,"",null,"",null,"",null,"",null,"",null,""]
["",null,null,null,"",null,null,null,null,null,null,null,"",null,"",null,"",null,"",null,"",null,"",null,"",null,"",null,""]
["",null,null,null,"",null,null,null,null,null,null,null,"",null,"",null,"",null,"",null,"",null,"",null,"",null,"",null,""]
["",null,null,null,"",null,null,null,null,null,null,null,"",null,"",null,"",null,"",null,"",null,"",null,"",null,"",null,""]
["",null,null,null,"",null,null,null,null,null,null,null,"",null,"",null,"",null,"",null,"",null,"",null,"",null,"",null,""]
["",null,null,null,"",null,null,null,null,null,null,null,"",null,"",null,"",null,"",null,"",null,"",null,"",null,"",null,""]
["",null,null,null,"",null,null,null,null,null,null,null,"",null,"",null,"",null,"",null,"",null,"",null,"",null,"",null,""]
["",null,null,null,"",null,null,null,null,null,null,null,"",null,"",null,"",null,"",null,"",null,"",null,"",null,"",null,""]
["",null,null,null,"",null,null,null,null,null,null,null,"",null,"",null,"",null,"",null,"",null,"",null,"",null,"",null,""]
["",null,null,null,"",null,null,null,null,null,null,null,"",null,"",null,"",null,"",null,"",null,"",null,"",null,"",null,""]
["",null,null,null,"",null,null,null,null,null,null,null,"",null,"",null,"",null,"",null,"",null,"",null,"",null,"",null,""]
["",null,null,null,"",null,null,null,null,null,null,null,"",null,"",null,"",null,"",null,"",null,"",null,"",null,"",null,""]
["",null,null,null,"",null,null,null,null,null,null,null,"",null,"",null,"",null,"",null,"",null,"",null,"",null,"",null,""]
["",null,null,null,"",null,null,null,null,null,null,null,"",null,"",null,"",null,"",null,"",null,"",null,"",null,"",null,""]
["",null,null,null,{"$f":"IF(ISBLANK(D340),\"\",\"x\")","v":""},null,null,null,null,null,null,null,{"$f":"IF(ISBLANK(K340),\"\",K340)","v":""},null,{"$f":"IF(ISBLANK(K340),\"\",K340)","v":""},null,{"$f":"IF(ISBLANK(K340),\"\",K340)","v":""},null,{"$f":"IF(ISBLANK(K340),\"\",K340)","v":""},null,{"$f":"IF(ISBLANK(M340),\"\",M340)","v":""},null,{"$f":"IF(ISBLANK(O340),\"\",O340)","v":""},null,{"$f":"IF(ISBLANK(Q340),\"\",Q340)","v":""},null,{"$f":"IF(ISBLANK(S340),\"\",S340)","v":""},null,{"$f":"IF(ISBLANK(U340),\"\",U340)","v":""}]
["",null,null,null,"",null,null,null,null,null,null,null,"",null,"",null,"",null,"",null,"",null,"",null,"",null,"",null,""]
["",null,null,null,"",null,null,null,null,null,null,null,"",null,"",null,"",null,"",null,"",null,"",null,"",null,"",null,""]
["",null,null,null,"",null,null,null,null,null,null,null,"",null,"",null,"",null,"",null,"",null,"",null,"",null,"",null,""]
["",null,null,null,"",null,null,null,null,null,null,null,"",null,"",null,"",null,"",null,"",null,"",null,"",null,"",null,""]
["",null,null,null,"",null,null,null,null,null,null,null,"",null,"",null,"",null,"",null,"",null,"",null,"",null,"",null,""]
["",null,null,null,"",null,null,null,null,null,null,null,"",null,"",null,"",null,"",null,"",null,"",null,"",null,"",null,""]
["",null,null,null,"",null,null,null,null,null,null,null,"",null,"",null,"",null,"",null,"",null,"",null,"",null,"",null,""]
["",null,null,null,"",null,null,null,null,null,null,null,"",null,"",null,"",null,"",null,"",null,"",null,"",null,"",null,""]
["",null,null,null,"",null,null,null,null,null,null,null,"",null,"",null,"",null,"",null,"",null,"",null,"",null,"",null,""]
["",null,null,null,"",null,null,null,null,null,null,null,"",null,"",null,"",null,"",null,"",null,"",null,"",null,"",null,""]
["",null,null,null,"",null,null,null,null,null,null,null,"",null,"",null,"",null,"",null,"",null,"",null,"",null,"",null,""]
[{"$f":"IF(OR(NOT(ISBLANK(B351)),NOT(ISBLANK(C351)),NOT(ISBLANK(D351)),NOT(ISBLANK(F351)),NOT(ISBLANK(G351)),NOT(ISBLANK(H351)),NOT(ISBLANK(I351)),NOT(ISBLANK(J351)),NOT(ISBLANK(K351)),NOT(ISBLANK(L351)),NOT(ISBLANK(N351)),NOT(ISBLANK(P351)),NOT(ISBLANK(R351)),NOT(ISBLANK(T351)),NOT(ISBLANK(V351)),NOT(ISBLANK(X351)),NOT(ISBLANK(Z351)),NOT(ISBLANK(AB351))),ROW(A356)-23,\"\")","v":""},null,null,null,"",null,null,null,null,null,null,null,"",null,"",null,"",null,"",null,"",null,"",null,"",null,"",null,""]
["",null,null,null,"",null,null,null,null,null,null,null,"",null,"",null,"",null,"",null,"",null,"",null,"",null,"",null,""]
["",null,null,null,"",null,null,null,null,null,null,null,"",null,"",null,"",null,"",null,"",null,"",null,"",null,"",null,""]
["",null,null,null,"",null,null,null,null,null,null,null,"",null,"",null,"",null,"",null,"",null,"",null,"",null,"",null,""]
["",null,null,null,"",null,null,null,null,null,null,null,"",null,"",null,"",null,"",null,"",null,"",null,"",null,"",null,""]
["",null,null,null,"",null,null,null,null,null,null,null,"",null,"",null,"",null,"",null,"",null,"",null,"",null,"",null,""]
["",null,null,null,"",null,null,null,null,null,null,null,"",null,"",null,"",null,"",null,"",null,"",null,"",null,"",null,""]
["",null,null,null,"",null,null,null,null,null,null,null,"",null,"",null,"",null,"",null,"",null,"",null,"",null,"",null,""]
["",null,null,null,"",null,null,null,null,null,null,null,"",null,"",null,"",null,"",null,"",null,"",null,"",null,"",null,""]
["",null,null,null,"",null,null,null,null,null,null,null,"",null,"",null,"",null,"",null,"",null,"",null,"",null,"",null,""]
["",null,null,null,"",null,null,null,null,null,null,null,"",null,"",null,"",null,"",null,"",null,"",null,"",null,"",null,""]
["",null,null,null,"",null,null,null,null,null,null,null,"",null,"",null,"",null,"",null,"",null,"",null,"",null,"",null,""]
["",null,null,null,"",null,null,null,null,null,null,null,"",null,"",null,"",null,"",null,"",null,"",null,"",null,"",null,""]
["",null,null,null,"",null,null,null,null,null,null,null,"",null,"",null,"",null,"",null,"",null,"",null,"",null,"",null,""]
["",null,null,null,"",null,null,null,null,null,null,null,"",null,"",null,"",null,"",null,"",null,"",null,"",null,"",null,""]
["",null,null,null,"",null,null,null,null,null,null,null,"",null,"",null,"",null,"",null,"",null,"",null,"",null,"",null,""]
["",null,null,null,"",null,null,null,null,null,null,null,"",null,"",null,"",null,"",null,"",null,"",null,"",null,"",null,""]
["",null,null,null,"",null,null,null,null,null,null,null,"",null,"",null,"",null,"",null,"",null,"",null,"",null,"",null,""]
["",null,null,null,"",null,null,null,null,null,null,null,"",null,"",null,"",null,"",null,"",null,"",null,"",null,"",null,""]
["",null,null,null,"",null,null,null,null,null,null,null,"",null,"",null,"",null,"",null,"",null,"",null,"",null,"",null,""]
["",null,null,null,"",null,null,null,null,null,null,null,"",null,"",null,"",null,"",null,"",null,"",null,"",null,"",null,""]
["",null,null,null,"",null,null,null,null,null,null,null,"",null,"",null,"",null,"",null,"",null,"",null,"",null,"",null,""]
["",null,null,null,"",null,null,null,null,null,null,null,"",null,"",null,"",null,"",null,"",null,"",null,"",null,"",null,""]
["",null,null,null,"",null,null,null,null,null,null,null,"",null,"",null,"",null,"",null,"",null,"",null,"",null,"",null,""]
["",null,null,null,"",null,null,null,null,null,null,null,"",null,"",null,"",null,"",null,"",null,"",null,"",null,"",null,""]
["",null,null,null,"",null,null,null,null,null,null,null,"",null,"",null,"",null,"",null,"",null,"",null,"",null,"",null,""]
["",null,null,null,"",null,null,null,null,null,null,null,"",null,"",null,"",null,"",null,"",null,"",null,"",null,"",null,""]
["",null,null,null,"",null,null,null,null,null,null,null,"",null,"",null,"",null,"",null,"",null,"",null,"",null,"",null,""]
["",null,null,null,"",null,null,null,null,null,null,null,"",null,"",null,"",null,"",null,"",null,"",null,"",null,"",null,""]
["",null,null,null,"",null,null,null,null,null,null,null,"",null,"",null,"",null,"",null,"",null,"",null,"",null,"",null,""]
["",null,null,null,"",null,null,null,null,null,null,null,"",null,"",null,"",null,"",null,"",null,"",null,"",null,"",null,""]
["",null,null,null,"",null,null,null,null,null,null,null,"",null,"",null,"",null,"",null,"",null,"",null,"",null,"",null,""]
["",null,null,null,"",null,null,null,null,null,null,null,"",null,"",null,"",null,"",null,"",null,"",null,"",null,"",null,""]
["",null,null,null,"",null,null,null,null,null,null,null,"",null,"",null,"",null,"",null,"",null,"",null,"",null,"",null,""]
["",null,null,null,"",null,null,null,null,null,null,null,"",null,"",null,"",null,"",null,"",null,"",null,"",null,"",null,""]
["",null,null,null,"",null,null,null,null,null,null,null,"",null,"",null,"",null,"",null,"",null,"",null,"",null,"",null,""]
["",null,null,null,"",null,null,null,null,null,null,null,"",null,"",null,"",null,"",null,"",null,"",null,"",null,"",null,""]
["",null,null,null,"",null,null,null,null,null,null,null,"",null,"",null,"",null,"",null,"",null,"",null,"",null,"",null,""]
["",null,null,null,"",null,null,null,null,null,null,null,"",null,"",null,"",null,"",null,"",null,"",null,"",null,"",null,""]
["",null,null,null,"",null,null,null,null,null,null,null,"",null,"",null,"",null,"",null,"",null,"",null,"",null,"",null,""]
["",null,null,null,"",null,null,null,null,null,null,null,"",null,"",null,"",null,"",null,"",null,"",null,"",null,"",null,""]
["",null,null,null,"",null,null,null,null,null,null,null,"",null,"",null,"",null,"",null,"",null,"",null,"",null,"",null,""]
["",null,null,null,"",null,null,null,null,null,null,null,"",null,"",null,"",null,"",null,"",null,"",null,"",null,"",null,""]
["",null,null,null,"",null,null,null,null,null,null,null,"",null,"",null,"",null,"",null,"",null,"",null,"",null,"",null,""]
["",null,null,null,"",null,null,null,null,null,null,null,"",null,"",null,"",null,"",null,"",null,"",null,"",null,"",null,""]
["",null,null,null,"",null,null,null,null,null,null,null,"",null,"",null,"",null,"",null,"",null,"",null,"",null,"",null,""]
["",null,null,null,"",null,null,null,null,null,null,null,"",null,"",null,"",null,"",null,"",null,"",null,"",null,"",null,""]
["",null,null,null,"",null,null,null,null,null,null,null,"",null,"",null,"",null,"",null,"",null,"",null,"",null,"",null,""]
["",null,null,null,"",null,null,null,null,null,null,null,"",null,"",null,"",null,"",null,"",null,"",null,"",null,"",null,""]
["",null,null,null,"",null,null,null,null,null,null,null,"",null,"",null,"",null,"",null,"",null,"",null,"",null,"",null,""]
["",null,null,null,"",null,null,null,null,null,null,null,"",null,"",null,"",null,"",null,"",null,"",null,"",null,"",null,""]
["",null,null,null,"",null,null,null,null,null,null,null,"",null,"",null,"",null,"",null,"",null,"",null,"",null,"",null,""]
["",null,null,null,{"$f":"IF(ISBLANK(D404),\"\",\"x\")","v":""},null,null,null,null,null,null,null,{"$f":"IF(ISBLANK(K404),\"\",K404)","v":""},null,{"$f":"IF(ISBLANK(K404),\"\",K404)","v":""},null,{"$f":"IF(ISBLANK(K404),\"\",K404)","v":""},null,{"$f":"IF(ISBLANK(K404),\"\",K404)","v":""},null,{"$f":"IF(ISBLANK(M404),\"\",M404)","v":""},null,{"$f":"IF(ISBLANK(O404),\"\",O404)","v":""},null,{"$f":"IF(ISBLANK(Q404),\"\",Q404)","v":""},null,{"$f":"IF(ISBLANK(S404),\"\",S404)","v":""},null,{"$f":"IF(ISBLANK(U404),\"\",U404)","v":""}]
["",null,null,null,"",null,null,null,null,null,null,null,"",null,"",null,"",null,"",null,"",null,"",null,"",null,"",null,""]
["",null,null,null,"",null,null,null,null,null,null,null,"",null,"",null,"",null,"",null,"",null,"",null,"",null,"",null,""]
["",null,null,null,"",null,null,null,null,null,null,null,"",null,"",null,"",null,"",null,"",null,"",null,"",null,"",null,""]
["",null,null,null,"",null,null,null,null,null,null,null,"",null,"",null,"",null,"",null,"",null,"",null,"",null,"",null,""]
["",null,null,null,"",null,null,null,null,null,null,null,"",null,"",null,"",null,"",null,"",null,"",null,"",null,"",null,""]
["",null,null,null,"",null,null,null,null,null,null,null,"",null,"",null,"",null,"",null,"",null,"",null,"",null,"",null,""]
["",null,null,null,"",null,null,null,null,null,null,null,"",null,"",null,"",null,"",null,"",null,"",null,"",null,"",null,""]
["",null,null,null,"",null,null,null,null,null,null,null,"",null,"",null,"",null,"",null,"",null,"",null,"",null,"",null,""]
["",null,null,null,"",null,null,null,null,null,null,null,"",null,"",null,"",null,"",null,"",null,"",null,"",null,"",null,""]
["",null,null,null,"",null,null,null,null,null,null,null,"",null,"",null,"",null,"",null,"",null,"",null,"",null,"",null,""]
["",null,null,null,"",null,null,null,null,null,null,null,"",null,"",null,"",null,"",null,"",null,"",null,"",null,"",null,""]
[{"$f":"IF(OR(NOT(ISBLANK(B415)),NOT(ISBLANK(C415)),NOT(ISBLANK(D415)),NOT(ISBLANK(F415)),NOT(ISBLANK(G415)),NOT(ISBLANK(H415)),NOT(ISBLANK(I415)),NOT(ISBLANK(J415)),NOT(ISBLANK(K415)),NOT(ISBLANK(L415)),NOT(ISBLANK(N415)),NOT(ISBLANK(P415)),NOT(ISBLANK(R415)),NOT(ISBLANK(T415)),NOT(ISBLANK(V415)),NOT(ISBLANK(X415)),NOT(ISBLANK(Z415)),NOT(ISBLANK(AB415))),ROW(A420)-23,\"\")","v":""},null,null,null,"",null,null,null,null,null,null,null,"",null,"",null,"",null,"",null,"",null,"",null,"",null,"",null,""]
["",null,null,null,"",null,null,null,null,null,null,null,"",null,"",null,"",null,"",null,"",null,"",null,"",null,"",null,""]
["",null,null,null,"",null,null,null,null,null,null,null,"",null,"",null,"",null,"",null,"",null,"",null,"",null,"",null,""]
["",null,null,null,"",null,null,null,null,null,null,null,"",null,"",null,"",null,"",null,"",null,"",null,"",null,"",null,""]
["",null,null,null,"",null,null,null,null,null,null,null,"",null,"",null,"",null,"",null,"",null,"",null,"",null,"",null,""]
["",null,null,null,"",null,null,null,null,null,null,null,"",null,"",null,"",null,"",null,"",null,"",null,"",null,"",null,""]
["",null,null,null,"",null,null,null,null,null,null,null,"",null,"",null,"",null,"",null,"",null,"",null,"",null,"",null,""]
["",null,null,null,"",null,null,null,null,null,null,null,"",null,"",null,"",null,"",null,"",null,"",null,"",null,"",null,""]
["",null,null,null,"",null,null,null,null,null,null,null,"",null,"",null,"",null,"",null,"",null,"",null,"",null,"",null,""]
["",null,null,null,"",null,null,null,null,null,null,null,"",null,"",null,"",null,"",null,"",null,"",null,"",null,"",null,""]
["",null,null,null,"",null,null,null,null,null,null,null,"",null,"",null,"",null,"",null,"",null,"",null,"",null,"",null,""]
["",null,null,null,"",null,null,null,null,null,null,null,"",null,"",null,"",null,"",null,"",null,"",null,"",null,"",null,""]
["",null,null,null,"",null,null,null,null,null,null,null,"",null,"",null,"",null,"",null,"",null,"",null,"",null,"",null,""]
["",null,null,null,"",null,null,null,null,null,null,null,"",null,"",null,"",null,"",null,"",null,"",null,"",null,"",null,""]
["",null,null,null,"",null,null,null,null,null,null,null,"",null,"",null,"",null,"",null,"",null,"",null,"",null,"",null,""]
["",null,null,null,"",null,null,null,null,null,null,null,"",null,"",null,"",null,"",null,"",null,"",null,"",null,"",null,""]
["",null,null,null,"",null,null,null,null,null,null,null,"",null,"",null,"",null,"",null,"",null,"",null,"",null,"",null,""]
["",null,null,null,"",null,null,null,null,null,null,null,"",null,"",null,"",null,"",null,"",null,"",null,"",null,"",null,""]
["",null,null,null,"",null,null,null,null,null,null,null,"",null,"",null,"",null,"",null,"",null,"",null,"",null,"",null,""]
["",null,null,null,"",null,null,null,null,null,null,null,"",null,"",null,"",null,"",null,"",null,"",null,"",null,"",null,""]
["",null,null,null,"",null,null,null,null,null,null,null,"",null,"",null,"",null,"",null,"",null,"",null,"",null,"",null,""]
["",null,null,null,"",null,null,null,null,null,null,null,"",null,"",null,"",null,"",null,"",null,"",null,"",null,"",null,""]
["",null,null,null,"",null,null,null,null,null,null,null,"",null,"",null,"",null,"",null,"",null,"",null,"",null,"",null,""]
["",null,null,null,"",null,null,null,null,null,null,null,"",null,"",null,"",null,"",null,"",null,"",null,"",null,"",null,""]
["",null,null,null,"",null,null,null,null,null,null,null,"",null,"",null,"",null,"",null,"",null,"",null,"",null,"",null,""]
["",null,null,null,"",null,null,null,null,null,null,null,"",null,"",null,"",null,"",null,"",null,"",null,"",null,"",null,""]
["",null,null,null,"",null,null,null,null,null,null,null,"",null,"",null,"",null,"",null,"",null,"",null,"",null,"",null,""]
["",null,null,null,"",null,null,null,null,null,null,null,"",null,"",null,"",null,"",null,"",null,"",null,"",null,"",null,""]
["",null,null,null,"",null,null,null,null,null,null,null,"",null,"",null,"",null,"",null,"",null,"",null,"",null,"",null,""]
["",null,null,null,"",null,null,null,null,null,null,null,"",null,"",null,"",null,"",null,"",null,"",null,"",null,"",null,""]
["",null,null,null,"",null,null,null,null,null,null,null,"",null,"",null,"",null,"",null,"",null,"",null,"",null,"",null,""]
["",null,null,null,"",null,null,null,null,null,null,null,"",null,"",null,"",null,"",null,"",null,"",null,"",null,"",null,""]
["",null,null,null,"",null,null,null,null,null,null,null,"",null,"",null,"",null,"",null,"",null,"",null,"",null,"",null,""]
["",null,null,null,"",null,null,null,null,null,null,null,"",null,"",null,"",null,"",null,"",null,"",null,"",null,"",null,""]
["",null,null,null,"",null,null,null,null,null,null,null,"",null,"",null,"",null,"",null,"",null,"",null,"",null,"",null,""]
["",null,null,null,"",null,null,null,null,null,null,null,"",null,"",null,"",null,"",null,"",null,"",null,"",null,"",null,""]
["",null,null,null,"",null,null,null,null,null,null,null,"",null,"",null,"",null,"",null,"",null,"",null,"",null,"",null,""]
["",null,null,null,"",null,null,null,null,null,null,null,"",null,"",null,"",null,"",null,"",null,"",null,"",null,"",null,""]
["",null,null,null,"",null,null,null,null,null,null,null,"",null,"",null,"",null,"",null,"",null,"",null,"",null,"",null,""]
["",null,null,null,"",null,null,null,null,null,null,null,"",null,"",null,"",null,"",null,"",null,"",null,"",null,"",null,""]
["",null,null,null,"",null,null,null,null,null,null,null,"",null,"",null,"",null,"",null,"",null,"",null,"",null,"",null,""]
["",null,null,null,"",null,null,null,null,null,null,null,"",null,"",null,"",null,"",null,"",null,"",null,"",null,"",null,""]
["",null,null,null,"",null,null,null,null,null,null,null,"",null,"",null,"",null,"",null,"",null,"",null,"",null,"",null,""]
["",null,null,null,"",null,null,null,null,null,null,null,"",null,"",null,"",null,"",null,"",null,"",null,"",null,"",null,""]
["",null,null,null,"",null,null,null,null,null,null,null,"",null,"",null,"",null,"",null,"",null,"",null,"",null,"",null,""]
["",null,null,null,"",null,null,null,null,null,null,null,"",null,"",null,"",null,"",null,"",null,"",null,"",null,"",null,""]
["",null,null,null,"",null,null,null,null,null,null,null,"",null,"",null,"",null,"",null,"",null,"",null,"",null,"",null,""]
["",null,null,null,"",null,null,null,null,null,null,null,"",null,"",null,"",null,"",null,"",null,"",null,"",null,"",null,""]
["",null,null,null,"",null,null,null,null,null,null,null,"",null,"",null,"",null,"",null,"",null,"",null,"",null,"",null,""]
["",null,null,null,"",null,null,null,null,null,null,null,"",null,"",null,"",null,"",null,"",null,"",null,"",null,"",null,""]
["",null,null,null,"",null,null,null,null,null,null,null,"",null,"",null,"",null,"",null,"",null,"",null,"",null,"",null,""]
["",null,null,null,"",null,null,null,null,null,null,null,"",null,"",null,"",null,"",null,"",null,"",null,"",null,"",null,""]
["",null,null,null,{"$f":"IF(ISBLANK(D468),\"\",\"x\")","v":""},null,null,null,null,null,null,null,{"$f":"IF(ISBLANK(K468),\"\",K468)","v":""},null,{"$f":"IF(ISBLANK(K468),\"\",K468)","v":""},null,{"$f":"IF(ISBLANK(K468),\"\",K468)","v":""},null,{"$f":"IF(ISBLANK(K468),\"\",K468)","v":""},null,{"$f":"IF(ISBLANK(M468),\"\",M468)","v":""},null,{"$f":"IF(ISBLANK(O468),\"\",O468)","v":""},null,{"$f":"IF(ISBLANK(Q468),\"\",Q468)","v":""},null,{"$f":"IF(ISBLANK(S468),\"\",S468)","v":""},null,{"$f":"IF(ISBLANK(U468),\"\",U468)","v":""}]
["",null,null,null,"",null,null,null,null,null,null,null,"",null,"",null,"",null,"",null,"",null,"",null,"",null,"",null,""]
["",null,null,null,"",null,null,null,null,null,null,null,"",null,"",null,"",null,"",null,"",null,"",null,"",null,"",null,""]
["",null,null,null,"",null,null,null,null,null,null,null,"",null,"",null,"",null,"",null,"",null,"",null,"",null,"",null,""]
["",null,null,null,"",null,null,null,null,null,null,null,"",null,"",null,"",null,"",null,"",null,"",null,"",null,"",null,""]
["",null,null,null,"",null,null,null,null,null,null,null,"",null,"",null,"",null,"",null,"",null,"",null,"",null,"",null,""]
["",null,null,null,"",null,null,null,null,null,null,null,"",null,"",null,"",null,"",null,"",null,"",null,"",null,"",null,""]
["",null,null,null,"",null,null,null,null,null,null,null,"",null,"",null,"",null,"",null,"",null,"",null,"",null,"",null,""]
["",null,null,null,"",null,null,null,null,null,null,null,"",null,"",null,"",null,"",null,"",null,"",null,"",null,"",null,""]
["",null,null,null,"",null,null,null,null,null,null,null,"",null,"",null,"",null,"",null,"",null,"",null,"",null,"",null,""]
["",null,null,null,"",null,null,null,null,null,null,null,"",null,"",null,"",null,"",null,"",null,"",null,"",null,"",null,""]
["",null,null,null,"",null,null,null,null,null,null,null,"",null,"",null,"",null,"",null,"",null,"",null,"",null,"",null,""]
[{"$f":"IF(OR(NOT(ISBLANK(B479)),NOT(ISBLANK(C479)),NOT(ISBLANK(D479)),NOT(ISBLANK(F479)),NOT(ISBLANK(G479)),NOT(ISBLANK(H479)),NOT(ISBLANK(I479)),NOT(ISBLANK(J479)),NOT(ISBLANK(K479)),NOT(ISBLANK(L479)),NOT(ISBLANK(N479)),NOT(ISBLANK(P479)),NOT(ISBLANK(R479)),NOT(ISBLANK(T479)),NOT(ISBLANK(V479)),NOT(ISBLANK(X479)),NOT(ISBLANK(Z479)),NOT(ISBLANK(AB479))),ROW(A484)-23,\"\")","v":""},null,null,null,"",null,null,null,null,null,null,null,"",null,"",null,"",null,"",null,"",null,"",null,"",null,"",null,""]
["",null,null,null,"",null,null,null,null,null,null,null,"",null,"",null,"",null,"",null,"",null,"",null,"",null,"",null,""]
["",null,null,null,"",null,null,null,null,null,null,null,"",null,"",null,"",null,"",null,"",null,"",null,"",null,"",null,""]
["",null,null,null,"",null,null,null,null,null,null,null,"",null,"",null,"",null,"",null,"",null,"",null,"",null,"",null,""]
["",null,null,null,"",null,null,null,null,null,null,null,"",null,"",null,"",null,"",null,"",null,"",null,"",null,"",null,""]
["",null,null,null,"",null,null,null,null,null,null,null,"",null,"",null,"",null,"",null,"",null,"",null,"",null,"",null,""]
["",null,null,null,"",null,null,null,null,null,null,null,"",null,"",null,"",null,"",null,"",null,"",null,"",null,"",null,""]
["",null,null,null,"",null,null,null,null,null,null,null,"",null,"",null,"",null,"",null,"",null,"",null,"",null,"",null,""]
["",null,null,null,"",null,null,null,null,null,null,null,"",null,"",null,"",null,"",null,"",null,"",null,"",null,"",null,""]
["",null,null,null,"",null,null,null,null,null,null,null,"",null,"",null,"",null,"",null,"",null,"",null,"",null,"",null,""]
["",null,null,null,"",null,null,null,null,null,null,null,"",null,"",null,"",null,"",null,"",null,"",null,"",null,"",null,""]
["",null,null,null,"",null,null,null,null,null,null,null,"",null,"",null,"",null,"",null,"",null,"",null,"",null,"",null,""]
["",null,null,null,"",null,null,null,null,null,null,null,"",null,"",null,"",null,"",null,"",null,"",null,"",null,"",null,""]
["",null,null,null,"",null,null,null,null,null,null,null,"",null,"",null,"",null,"",null,"",null,"",null,"",null,"",null,""]
["",null,null,null,"",null,null,null,null,null,null,null,"",null,"",null,"",null,"",null,"",null,"",null,"",null,"",null,""]
["",null,null,null,"",null,null,null,null,null,null,null,"",null,"",null,"",null,"",null,"",null,"",null,"",null,"",null,""]
["",null,null,null,"",null,null,null,null,null,null,null,"",null,"",null,"",null,"",null,"",null,"",null,"",null,"",null,""]
["",null,null,null,"",null,null,null,null,null,null,null,"",null,"",null,"",null,"",null,"",null,"",null,"",null,"",null,""]
["",null,null,null,"",null,null,null,null,null,null,null,"",null,"",null,"",null,"",null,"",null,"",null,"",null,"",null,""]
["",null,null,null,"",null,null,null,null,null,null,null,"",null,"",null,"",null,"",null,"",null,"",null,"",null,"",null,""]
["",null,null,null,"",null,null,null,null,null,null,null,"",null,"",null,"",null,"",null,"",null,"",null,"",null,"",null,""]
["",null,null,null,"",null,null,null,null,null,null,null,"",null,"",null,"",null,"",null,"",null,"",null,"",null,"",null,""]
["",null,null,null,"",null,null,null,null,null,null,null,"",null,"",null,"",null,"",null,"",null,"",null,"",null,"",null,""]
["",null,null,null,"",null,null,null,null,null,null,null,"",null,"",null,"",null,"",null,"",null,"",null,"",null,"",null,""]
["",null,null,null,"",null,null,null,null,null,null,null,"",null,"",null,"",null,"",null,"",null,"",null,"",null,"",null,""]
["",null,null,null,"",null,null,null,null,null,null,null,"",null,"",null,"",null,"",null,"",null,"",null,"",null,"",null,""]
["",null,null,null,"",null,null,null,null,null,null,null,"",null,"",null,"",null,"",null,"",null,"",null,"",null,"",null,""]
["",null,null,null,"",null,null,null,null,null,null,null,"",null,"",null,"",null,"",null,"",null,"",null,"",null,"",null,""]
["",null,null,null,"",null,null,null,null,null,null,null,"",null,"",null,"",null,"",null,"",null,"",null,"",null,"",null,""]
["",null,null,null,"",null,null,null,null,null,null,null,"",null,"",null,"",null,"",null,"",null,"",null,"",null,"",null,""]
["",null,null,null,"",null,null,null,null,null,null,null,"",null,"",null,"",null,"",null,"",null,"",null,"",null,"",null,""]
["",null,null,null,"",null,null,null,null,null,null,null,"",null,"",null,"",null,"",null,"",null,"",null,"",null,"",null,""]
["",null,null,null,"",null,null,null,null,null,null,null,"",null,"",null,"",null,"",null,"",null,"",null,"",null,"",null,""]
["",null,null,null,"",null,null,null,null,null,null,null,"",null,"",null,"",null,"",null,"",null,"",null,"",null,"",null,""]
["",null,null,null,"",null,null,null,null,null,null,null,"",null,"",null,"",null,"",null,"",null,"",null,"",null,"",null,""]
["",null,null,null,"",null,null,null,null,null,null,null,"",null,"",null,"",null,"",null,"",null,"",null,"",null,"",null,""]
["",null,null,null,"",null,null,null,null,null,null,null,"",null,"",null,"",null,"",null,"",null,"",null,"",null,"",null,""]
["",null,null,null,"",null,null,null,null,null,null,null,"",null,"",null,"",null,"",null,"",null,"",null,"",null,"",null,""]
["",null,null,null,"",null,null,null,null,null,null,null,"",null,"",null,"",null,"",null,"",null,"",null,"",null,"",null,""]
["",null,null,null,"",null,null,null,null,null,null,null,"",null,"",null,"",null,"",null,"",null,"",null,"",null,"",null,""]

{"sheet":"Instructies","index":1,"n_rows":30,"n_cols":10,"rows_kept":30,"cut":false,"hidden":false,"merged":[[0,1,0,13],[8,1,8,13],[1,1,1,10],[13,1,13,13],[2,1,2,13],[3,1,3,13],[4,1,4,13],[5,1,5,13],[6,1,6,13],[7,1,7,13],[21,9,21,13],[20,2,20,6],[21,2,21,6],[23,9,23,13],[17,9,17,13],[18,9,18,13],[19,9,19,13],[22,9,22,13],[25,9,25,13],[14,9,14,13],[20,9,20,13],[24,9,24,13],[10,1,10,10],[14,2,14,6],[15,2,15,6],[16,2,16,6],[17,2,17,6],[18,2,18,6],[19,2,19,6],[22,2,22,6],[23,2,23,6],[24,2,24,6],[15,9,15,13],[16,9,16,13]]}
[null,"Instructies bestelformulier industriële graveerplaatjes"]
[]
[null,"Bij Verver-Best bestelt u eenvoudig uw industriële graveerplaatjes middels dit bestelformulier. De graveerplaatjes worden gemaakt van 2-laags kunststof met een dikte van 1,6mm. Het materiaal is voor zowel binnen- als buitengebruik geschikt. Voor graveerplaatjes van andere materialen kunt u contact met ons opnemen via info@ververbest.nl"]
[null,"LET OP! Controleer de teksten goed! De teksten worden gegraveerd zoals deze worden aangeleverd. Verver-Best is niet aansprakelijk voor tekstuele fouten wegens foutieve aanlevering. Indien de tekstregel niet volledig op één regel past, zal deze worden afgebroken en verdeeld worden over meerdere regels. Groepeer de tekstplaten eerst op kleur en vervolgens op afmeting."]
[null,"Onderaan dit instructieformulier vindt u de staffelprijzen van graveerplaatjes. Deze korting zullen wij meenemen in uw offerte of bestelling."]
[null,"Druk op de knop [Naar het bestelformulier] om naar het bestelformulier te gaan. Hier kunt u uw gegevens en aanvraag invullen.\nTIP! Vul uw gegevens eenmalig in op het bestelformulier en sla het vervolgens op. Op deze manier hoeft u niet iedere keer uw gegevens opnieuw in te vullen."]
[null,"Indien u de bestelling wilt versturen of een offerte wilt aanvragen, kunt u in het bestelformulier op de knop [Verstuur bestelling] of \n[Vraag offerte aan] drukken. Uw ingevulde bestelformulier wordt vervolgens automatisch per mail naar ons verstuurd. Op werkdagen ontvangt u binnen 48 uur een reactie op uw bestelling of offerteaanvraag. Het is ook mogelijk om het formulier op te slaan en handmatig te mailen naar info@ververbest.nl. Uiteraard kunt u ons op dit e-mailadres ook bereiken voor vragen omtrent uw bestelling via het bestelformulier."]
[null,"Bij orders met een netto orderbedrag van minder dan €250,00 worden er kleine orderkosten in rekening gebracht:\nNetto orderwaarde < 50,00: kleine orderkosten €40,00\nNetto orderwaarde €50,00 tot €75,00: kleine orderkosten €30,00\nNetto orderwaarde €75,00 tot €150,00: kleine orderkosten €25,00\nNetto orderwaarde €150,00 tot €200,00: kleine orderkosten €20,00\nNetto orderwaarde €200,00 tot €250,00: kleine orderkosten €17,50\nDe verzendkosten van bestellingen tot 15 kilogram bedragen €19,00 voor verzending binnen Nederland. Prijzen voor zwaardere pakketten en afleveradressen buiten Nederland zijn op aanvraag."]
[null,"Alle genoemde prijzen in dit bestelformulier zijn exclusief btw.\nIngang bestelformulier met bijbehorende kortingsstaffels: 01-05-2026"]
[]
[]
[]
[]
[null,"Legenda kleuren"]
[null,"Kleurcode","Achtergrond- en tekstkleur",null,null,null,null,null,"Kleurcode","Achtergrond- en tekstkleur"]
[null,1,"witte achtergrond met zwarte gravure",null,null,null,null,null,11,"gele achtergrond met zwarte gravure"]
[null,2,"zwarte achtergrond met witte gravure",null,null,null,null,null,12,"paarse achtergrond met witte gravure"]
[null,3,"witte achtergrond met rode gravure",null,null,null,null,null,13,"bruine achtergrond met witte gravure"]
[null,4,"rode achtergrond met witte gravure",null,null,null,null,null,14,"grijze achtergrond met witte gravure"]
[null,5,"witte achtergrond met blauwe gravure",null,null,null,null,null,15,"grijze achtergrond met blauwe gravure"]
[null,6,"blauwe achtergrond met witte gravure",null,null,null,null,null,16,"grijze achtergrond met zwarte gravure"]
[null,7,"witte achtergrond met groene gravure",null,null,null,null,null,17,"goude achtergrond met zwarte gravure"]
[null,8,"groene achtergrond met witte gravure",null,null,null,null,null,18,"zilveren achtergrond met zwarte gravure"]
[null,9,"witte achtergrond met oranje gravure",null,null,null,null,null,19,"zilveren achtergrond met rode gravure"]
[null,10,"oranje achtergrond met witte gravure",null,null,null,null,null,20,"RVS-look achtergrond met zwarte gravure"]
[]
[null,"Staffelprijzen voor totaalbedrag graveerplaatjes",null,null,null,"Korting"]
[null,"€750 tot €1250",null,null,null,"5%"]
[null,"€1250 tot €2000",null,null,null,"7,5%"]
[null,"€2000 en hoger",null,null,null,0.1]

{"sheet":"Productiebestand","index":2,"n_rows":21,"n_cols":29,"rows_kept":21,"cut":false,"hidden":true,"merged":[]}
["Tekstregel 1","Tekstregel 2","Tekstregel 3","Tekstregel 4","Tekstregel 5","Tekstregel 6","Tekstregel 7","Tekstregel 8","Tekstregel 9",null,null,null,null,null,null,null,null,null,null,null,null,null,null,null,null,null,"Gebundeld per kleur en per afmeting","NR","KLEUR"]
[null,null,null,null,null,null,null,null,null,null,null,null,null,null,null,null,null,null,null,null,null,null,null,null,null,null,"Elke bestelregel apart",1,"Wit-zwart"]
[null,null,null,null,null,null,null,null,null,null,null,null,null,null,null,null,null,null,null,null,null,null,null,null,null,null,"Gebundeld per afmeting",2,"Zwart-wit"]
[null,null,null,null,null,null,null,null,null,null,null,null,null,null,null,null,null,null,null,null,null,null,null,null,null,null,"Gebundeld per kleur en per afmeting",3,"Wit-rood"]
[null,null,null,null,null,null,null,null,null,null,null,null,null,null,null,null,null,null,null,null,null,null,null,null,null,null,"Gebundeld per kleur",4,"Rood-wit"]
[null,null,null,null,null,null,null,null,null,null,null,null,null,null,null,null,null,null,null,null,null,null,null,null,null,null,"Alle bestelregels gebundeld",5,"Wit-blauw"]
[null,null,null,null,null,null,null,null,null,null,null,null,null,null,null,null,null,null,null,null,null,null,null,null,null,null,null,6,"Blauw-wit"]
[null,null,null,null,null,null,null,null,null,null,null,null,null,null,null,null,null,null,null,null,null,null,null,null,null,null,null,7,"Wit-groen"]
[null,null,null,null,null,null,null,null,null,null,null,null,null,null,null,null,null,null,null,null,null,null,null,null,null,null,null,8,"Groen-wit"]
[null,null,null,null,null,null,null,null,null,null,null,null,null,null,null,null,null,null,null,null,null,null,null,null,null,null,null,9,"Wit-oranje"]
[null,null,null,null,null,null,null,null,null,null,null,null,null,null,null,null,null,null,null,null,null,null,null,null,null,null,null,10,"Oranje-wit"]
[null,null,null,null,null,null,null,null,null,null,null,null,null,null,null,null,null,null,null,null,null,null,null,null,null,null,null,11,"Geel-zwart"]
[null,null,null,null,null,null,null,null,null,null,null,null,null,null,null,null,null,null,null,null,null,null,null,null,null,null,null,12,"Paars-wit"]
[null,null,null,null,null,null,null,null,null,null,null,null,null,null,null,null,null,null,null,null,null,null,null,null,null,null,null,13,"Bruin-wit"]
[null,null,null,null,null,null,null,null,null,null,null,null,null,null,null,null,null,null,null,null,null,null,null,null,null,null,null,14,"Grijs-wit"]
[null,null,null,null,null,null,null,null,null,null,null,null,null,null,null,null,null,null,null,null,null,null,null,null,null,null,null,15,"Grijs-blauw"]
[null,null,null,null,null,null,null,null,null,null,null,null,null,null,null,null,null,null,null,null,null,null,null,null,null,null,null,16,"Grijs-zwart"]
[null,null,null,null,null,null,null,null,null,null,null,null,null,null,null,null,null,null,null,null,null,null,null,null,null,null,null,17,"Goud-zwart"]
[null,null,null,null,null,null,null,null,null,null,null,null,null,null,null,null,null,null,null,null,null,null,null,null,null,null,null,18,"Zilver-zwart"]
[null,null,null,null,null,null,null,null,null,null,null,null,null,null,null,null,null,null,null,null,null,null,null,null,null,null,null,19,"Zilver-rood"]
[null,null,null,null,null,null,null,null,null,null,null,null,null,null,null,null,null,null,null,null,null,null,null,null,null,null,null,20,"RVS-zwart"]